[Event "Titled Tuesday Blitz November 16 2021"]
[White "Samadov, Read"]
[Black "Sadhwani, Raunak"]
[WhiteFideId "13417444"]
[BlackFideId "35093487"]
[WhiteElo "2084"]
[BlackElo "2517"]
[Result "0-1"]
[Round "10"]
[TimeControl "180+1"]
[Date "2021.11.16"]
[WhiteClock "0:00:06"]
[BlackClock "0:00:08"]

1. d4 {[%clk 0:03:00]}  Nf6 {[%clk 0:03:00]} 2. c4 {[%clk 0:03:01]}  g6 {[%clk 0:03:00]} 3. Nc3 {[%clk 0:03:01]}  Bg7 {[%clk 0:03:00]} 4. e4 {[%clk 0:03:01]}  d6 {[%clk 0:03:01]} 5. f4 {[%clk 0:03:01]}  O-O {[%clk 0:03:01]} 6. Nf3 {[%clk 0:03:02]}  c5 {[%clk 0:03:01]} 7. d5 {[%clk 0:03:02]}  e6 {[%clk 0:03:01]} 8. Be2 {[%clk 0:03:03]}  exd5 {[%clk 0:03:01]} 9. cxd5 {[%clk 0:03:03]}  Bg4 {[%clk 0:03:02]} 10. e5 {[%clk 0:03:00]}  dxe5 {[%clk 0:03:00]} 11. fxe5 {[%clk 0:03:00]}  Nfd7 {[%clk 0:02:59]} 12. e6 {[%clk 0:03:00]}  fxe6 {[%clk 0:02:58]} 13. O-O {[%clk 0:03:00]}  Nb6 {[%clk 0:02:08]} 14. h3 {[%clk 0:02:57]}  Bxf3 {[%clk 0:02:03]} 15. Bxf3 {[%clk 0:02:57]}  Bd4+ {[%clk 0:01:59]} 16. Kh1 {[%clk 0:02:55]}  exd5 {[%clk 0:01:58]} 17. Bh6 {[%clk 0:02:41]}  Rf7 {[%clk 0:01:58]} 18. Nxd5 {[%clk 0:02:24]}  Nxd5 {[%clk 0:01:43]} 19. Qb3 {[%clk 0:02:20]}  c4 {[%clk 0:01:04]} 20. Qxc4 {[%clk 0:02:09]}  Nb6 {[%clk 0:01:04]} 21. Qb3 {[%clk 0:02:09]}  Nc6 {[%clk 0:00:51]} 22. Bxc6 {[%clk 0:02:06]}  Qc7 {[%clk 0:00:44]} 23. Rxf7 {[%clk 0:01:13]}  Qxf7 {[%clk 0:00:45]} 24. Bxb7 {[%clk 0:01:13]}  Rb8 {[%clk 0:00:42]} 25. Bf3 {[%clk 0:01:04]}  Re8 {[%clk 0:00:26]} 26. Qb4 {[%clk 0:00:35]}  Bg7 {[%clk 0:00:22]} 27. Bxg7 {[%clk 0:00:34]}  Kxg7 {[%clk 0:00:23]} 28. a4 {[%clk 0:00:33]}  Nd7 {[%clk 0:00:19]} 29. Qd4+ {[%clk 0:00:28]}  Ne5 {[%clk 0:00:19]} 30. Re1 {[%clk 0:00:27]}  Qf6 {[%clk 0:00:19]} 31. Qxa7+ {[%clk 0:00:27]}  Re7 {[%clk 0:00:17]} 32. Qd4 {[%clk 0:00:26]}  Kh6 {[%clk 0:00:18]} 33. Qe3+ {[%clk 0:00:18]}  g5 {[%clk 0:00:17]} 34. a5 {[%clk 0:00:15]}  Ng6 {[%clk 0:00:16]} 35. Qf2 {[%clk 0:00:15]}  Rf7 {[%clk 0:00:09]} 36. b4 {[%clk 0:00:13]}  Nh4 {[%clk 0:00:08]} 37. Qa2 {[%clk 0:00:09]}  Kg7 {[%clk 0:00:07]} 38. Re6 {[%clk 0:00:08]}  Qd4 {[%clk 0:00:06]} 39. Re4 {[%clk 0:00:07]}  Qc3 {[%clk 0:00:06]} 40. Qe2 {[%clk 0:00:05]}  Nf5 {[%clk 0:00:05]} 41. Qf2 {[%clk 0:00:04]}  Qc7 {[%clk 0:00:05]} 42. Qb2+ {[%clk 0:00:03]}  Rf6 {[%clk 0:00:04]} 43. Kg1 {[%clk 0:00:04]}  Nh4 {[%clk 0:00:03]} 44. Re6 {[%clk 0:00:03]}  Nxf3+ {[%clk 0:00:03]} 45. gxf3 {[%clk 0:00:03]}  Qg3+ {[%clk 0:00:04]} 46. Kf1 {[%clk 0:00:03]}  Qxf3+ {[%clk 0:00:04]} 47. Ke1 {[%clk 0:00:04]}  Qf1+ {[%clk 0:00:04]} 48. Kd2 {[%clk 0:00:03]}  Qf2+ {[%clk 0:00:05]} 49. Kc3 {[%clk 0:00:03]}  Qxb2+ {[%clk 0:00:05]} 50. Kxb2 {[%clk 0:00:04]}  Rxe6 {[%clk 0:00:06]} 51. Kc3 {[%clk 0:00:04]}  Kf7 {[%clk 0:00:06]} 52. Kc4 {[%clk 0:00:05]}  Ke7 {[%clk 0:00:06]} 53. b5 {[%clk 0:00:06]}  Kd7 {[%clk 0:00:07]} 54. Kc5 {[%clk 0:00:05]}  Kc7 {[%clk 0:00:07]} 55. a6 {[%clk 0:00:06]}  Re5+ {[%clk 0:00:08]} 0-1


[Site "https://www.chess.com"]

[Event "Titled Tuesday Blitz November 16 2021"]
[White "Terry, Renato"]
[Black "Saydaliev, Saidakbar"]
[WhiteFideId "3803457"]
[BlackFideId "14203693"]
[WhiteElo "2577"]
[BlackElo "2335"]
[Result "1-0"]
[Round "10"]
[TimeControl "180+1"]
[Date "2021.11.16"]
[WhiteClock "0:00:56"]
[BlackClock "0:00:01"]

1. e4 {[%clk 0:02:59]}  e5 {[%clk 0:02:59]} 2. Nf3 {[%clk 0:02:59]}  Nc6 {[%clk 0:02:59]} 3. c3 {[%clk 0:02:59]}  d5 {[%clk 0:02:59]} 4. Qa4 {[%clk 0:02:59]}  f6 {[%clk 0:02:58]} 5. Bb5 {[%clk 0:02:58]}  Ne7 {[%clk 0:02:51]} 6. exd5 {[%clk 0:02:55]}  Qxd5 {[%clk 0:02:48]} 7. d4 {[%clk 0:02:56]}  a6 {[%clk 0:02:43]} 8. Bc4 {[%clk 0:02:56]}  Qe4+ {[%clk 0:02:12]} 9. Be3 {[%clk 0:02:56]}  exd4 {[%clk 0:02:11]} 10. cxd4 {[%clk 0:02:48]}  Be6 {[%clk 0:01:54]} 11. Nc3 {[%clk 0:02:38]}  Qg4 {[%clk 0:01:54]} 12. h3 {[%clk 0:02:16]}  Qxg2 {[%clk 0:01:51]} 13. Rg1 {[%clk 0:02:16]}  Qxf3 {[%clk 0:01:48]} 14. Bxe6 {[%clk 0:02:15]}  Nf5 {[%clk 0:00:16]} 15. Bd5 {[%clk 0:02:08]}  Qxh3 {[%clk 0:00:16]} 16. Bxc6+ {[%clk 0:02:08]}  Kd8 {[%clk 0:00:11]} 17. Bxb7 {[%clk 0:01:33]}  Rb8 {[%clk 0:00:06]} 18. Bg2 {[%clk 0:01:33]}  Qg4 {[%clk 0:00:05]} 19. Qc2 {[%clk 0:01:24]}  Bb4 {[%clk 0:00:03]} 20. Kf1 {[%clk 0:01:20]}  Re8 {[%clk 0:00:02]} 21. Re1 {[%clk 0:01:10]}  Bd6 {[%clk 0:00:01]} 22. b3 {[%clk 0:01:05]}  Nh4 {[%clk 0:00:01]} 23. Qd1 {[%clk 0:00:56]} 1-0


[Site "https://www.chess.com"]

[Event "Titled Tuesday Blitz November 16 2021"]
[White "Al Hosani, Omran"]
[Black "Le, Tuan Minh"]
[WhiteFideId "9308733"]
[BlackFideId "12401153"]
[WhiteElo "2259"]
[BlackElo "2450"]
[Result "0-1"]
[Round "11"]
[TimeControl "180+1"]
[Date "2021.11.16"]
[WhiteClock "0:00:05"]
[BlackClock "0:00:08"]

1. d4 {[%clk 0:02:59]}  Nf6 {[%clk 0:02:59]} 2. c4 {[%clk 0:03:00]}  Nc6 {[%clk 0:02:59]} 3. Nf3 {[%clk 0:02:59]}  e6 {[%clk 0:02:59]} 4. g3 {[%clk 0:02:58]}  Bb4+ {[%clk 0:02:59]} 5. Bd2 {[%clk 0:02:57]}  Qe7 {[%clk 0:02:59]} 6. Bg2 {[%clk 0:02:57]}  O-O {[%clk 0:02:59]} 7. O-O {[%clk 0:02:58]}  Bxd2 {[%clk 0:02:56]} 8. Nbxd2 {[%clk 0:02:55]}  d6 {[%clk 0:02:57]} 9. Qc2 {[%clk 0:02:55]}  e5 {[%clk 0:02:57]} 10. d5 {[%clk 0:02:54]}  Nb8 {[%clk 0:02:56]} 11. e4 {[%clk 0:02:52]}  a5 {[%clk 0:02:55]} 12. b3 {[%clk 0:02:52]}  Bg4 {[%clk 0:02:50]} 13. a3 {[%clk 0:02:47]}  Na6 {[%clk 0:02:48]} 14. Qc3 {[%clk 0:02:44]}  Nc5 {[%clk 0:02:48]} 15. Qe3 {[%clk 0:02:44]}  Bh5 {[%clk 0:02:34]} 16. b4 {[%clk 0:02:42]}  Ncd7 {[%clk 0:02:32]} 17. h3 {[%clk 0:02:34]}  Bg6 {[%clk 0:02:31]} 18. Rfc1 {[%clk 0:02:28]}  b6 {[%clk 0:02:31]} 19. Nh4 {[%clk 0:02:25]}  Rfb8 {[%clk 0:02:30]} 20. Nxg6 {[%clk 0:02:24]}  hxg6 {[%clk 0:02:31]} 21. Nb3 {[%clk 0:02:20]}  Qd8 {[%clk 0:02:27]} 22. Qc3 {[%clk 0:02:10]}  a4 {[%clk 0:02:09]} 23. Nd2 {[%clk 0:02:07]}  Ne8 {[%clk 0:02:08]} 24. Qd3 {[%clk 0:01:58]}  g5 {[%clk 0:02:05]} 25. Nb1 {[%clk 0:01:47]}  Ndf6 {[%clk 0:01:54]} 26. Nc3 {[%clk 0:01:47]}  Qd7 {[%clk 0:01:54]} 27. Qc2 {[%clk 0:01:35]}  g6 {[%clk 0:01:54]} 28. b5 {[%clk 0:01:35]}  Ra5 {[%clk 0:01:51]} 29. Qd2 {[%clk 0:01:23]}  g4 {[%clk 0:01:46]} 30. h4 {[%clk 0:01:23]}  Qe7 {[%clk 0:01:43]} 31. Na2 {[%clk 0:01:18]}  Raa8 {[%clk 0:01:35]} 32. Nb4 {[%clk 0:01:18]}  Qf8 {[%clk 0:01:35]} 33. Na6 {[%clk 0:01:16]}  Rb7 {[%clk 0:01:29]} 34. Qc2 {[%clk 0:01:16]}  Nd7 {[%clk 0:01:30]} 35. Qxa4 {[%clk 0:01:07]}  Nc5 {[%clk 0:01:28]} 36. Qd1 {[%clk 0:01:07]}  Nxa6 {[%clk 0:01:26]} 37. bxa6 {[%clk 0:01:08]}  Rxa6 {[%clk 0:01:27]} 38. Qxg4 {[%clk 0:01:09]}  Rba7 {[%clk 0:01:28]} 39. Rc3 {[%clk 0:01:07]}  Qh6 {[%clk 0:01:29]} 40. Rf3 {[%clk 0:00:43]}  Ra8 {[%clk 0:01:17]} 41. Bf1 {[%clk 0:00:30]}  R6a7 {[%clk 0:01:13]} 42. Kg2 {[%clk 0:00:20]}  Kg7 {[%clk 0:01:10]} 43. Qg5 {[%clk 0:00:19]}  Qxg5 {[%clk 0:01:02]} 44. hxg5 {[%clk 0:00:20]}  f6 {[%clk 0:01:03]} 45. gxf6+ {[%clk 0:00:17]}  Nxf6 {[%clk 0:01:04]} 46. Re3 {[%clk 0:00:18]}  Nd7 {[%clk 0:01:03]} 47. f3 {[%clk 0:00:18]}  Nc5 {[%clk 0:01:03]} 48. Be2 {[%clk 0:00:17]}  Ra4 {[%clk 0:00:54]} 49. Rc3 {[%clk 0:00:18]}  R4a5 {[%clk 0:00:53]} 50. Re3 {[%clk 0:00:18]}  g5 {[%clk 0:00:45]} 51. Rc3 {[%clk 0:00:17]}  g4 {[%clk 0:00:36]} 52. Re3 {[%clk 0:00:14]}  gxf3+ {[%clk 0:00:35]} 53. Bxf3 {[%clk 0:00:14]}  b5 {[%clk 0:00:33]} 54. cxb5 {[%clk 0:00:14]}  Rxb5 {[%clk 0:00:34]} 55. Rc1 {[%clk 0:00:11]}  Rb2+ {[%clk 0:00:33]} 56. Re2 {[%clk 0:00:11]}  Rxe2+ {[%clk 0:00:33]} 57. Bxe2 {[%clk 0:00:11]}  Rxa3 {[%clk 0:00:33]} 58. Bf3 {[%clk 0:00:10]}  Kf6 {[%clk 0:00:32]} 59. Rc2 {[%clk 0:00:11]}  Kg5 {[%clk 0:00:25]} 60. Rd2 {[%clk 0:00:09]}  Nd3 {[%clk 0:00:25]} 61. Be2 {[%clk 0:00:07]}  Nc5 {[%clk 0:00:25]} 62. Bf3 {[%clk 0:00:07]}  Rc3 {[%clk 0:00:24]} 63. Re2 {[%clk 0:00:07]}  Nb3 {[%clk 0:00:24]} 64. Ra2 {[%clk 0:00:05]}  Nd4 {[%clk 0:00:24]} 65. Rf2 {[%clk 0:00:05]}  Re3 {[%clk 0:00:22]} 66. Rf1 {[%clk 0:00:05]}  Kg6 {[%clk 0:00:20]} 67. Rf2 {[%clk 0:00:06]}  Rc3 {[%clk 0:00:10]} 68. Bg4 {[%clk 0:00:05]}  Kg5 {[%clk 0:00:10]} 69. Bd7 {[%clk 0:00:04]}  Nc2 {[%clk 0:00:08]} 70. Kh3 {[%clk 0:00:03]}  Ne3 {[%clk 0:00:08]} 71. Rf7 {[%clk 0:00:03]}  Kg6 {[%clk 0:00:07]} 72. Be6 {[%clk 0:00:03]}  Nd1 {[%clk 0:00:07]} 73. Rf8 {[%clk 0:00:03]}  Rc2 {[%clk 0:00:06]} 74. Kg4 {[%clk 0:00:02]}  Nf2+ {[%clk 0:00:07]} 75. Kh4 {[%clk 0:00:03]}  Kg7 {[%clk 0:00:06]} 76. Rf7+ {[%clk 0:00:03]}  Kg6 {[%clk 0:00:07]} 77. Rf8 {[%clk 0:00:03]}  Nd3 {[%clk 0:00:06]} 78. Rg8+ {[%clk 0:00:03]}  Kf6 {[%clk 0:00:07]} 79. Rf8+ {[%clk 0:00:04]}  Kg7 {[%clk 0:00:07]} 80. Rf7+ {[%clk 0:00:04]}  Kg6 {[%clk 0:00:08]} 81. Rf8 {[%clk 0:00:03]}  Re2 {[%clk 0:00:08]} 82. Rg8+ {[%clk 0:00:03]}  Kf6 {[%clk 0:00:08]} 83. Bf5 {[%clk 0:00:04]}  Nc5 {[%clk 0:00:06]} 84. Rg6+ {[%clk 0:00:04]}  Kf7 {[%clk 0:00:06]} 85. Kg4 {[%clk 0:00:04]}  Nxe4 {[%clk 0:00:04]} 86. Kh5 {[%clk 0:00:02]}  Rh2+ {[%clk 0:00:02]} 87. Kg4 {[%clk 0:00:03]}  Nf6+ {[%clk 0:00:02]} 88. Kf3 {[%clk 0:00:03]}  e4+ {[%clk 0:00:01]} 89. Kf4 {[%clk 0:00:02]}  Nxd5+ {[%clk 0:00:01]} 90. Kxe4 {[%clk 0:00:02]}  Ne7 {[%clk 0:00:02]} 91. Be6+ {[%clk 0:00:03]}  Kxg6 {[%clk 0:00:02]} 92. g4 {[%clk 0:00:04]}  Kg5 {[%clk 0:00:03]} 93. Bf5 {[%clk 0:00:04]}  Rb2 {[%clk 0:00:03]} 94. Kd4 {[%clk 0:00:04]}  Rb4+ {[%clk 0:00:04]} 95. Kd3 {[%clk 0:00:04]}  c5 {[%clk 0:00:05]} 96. Be6 {[%clk 0:00:05]}  Rd4+ {[%clk 0:00:06]} 97. Kc3 {[%clk 0:00:06]}  Ng6 {[%clk 0:00:06]} 98. Bc8 {[%clk 0:00:05]}  Ne5 {[%clk 0:00:07]} 99. Be6 {[%clk 0:00:05]}  Nxg4 {[%clk 0:00:08]} 0-1


[Site "https://www.chess.com"]

[Event "Titled Tuesday Blitz November 16 2021"]
[White "Andreikin, Dmitry"]
[Black "Sviridov, Valery"]
[WhiteFideId "4158814"]
[BlackFideId "4120680"]
[WhiteElo "2736"]
[BlackElo "2454"]
[Result "1-0"]
[Round "11"]
[TimeControl "180+1"]
[Date "2021.11.16"]
[WhiteClock "0:00:48"]
[BlackClock "0:00:36"]

1. d4 {[%clk 0:03:00]}  g6 {[%clk 0:02:58]} 2. e4 {[%clk 0:03:00]}  Bg7 {[%clk 0:02:58]} 3. Nf3 {[%clk 0:03:00]}  d6 {[%clk 0:02:58]} 4. Bc4 {[%clk 0:03:00]}  e6 {[%clk 0:02:57]} 5. O-O {[%clk 0:02:58]}  Ne7 {[%clk 0:02:57]} 6. Re1 {[%clk 0:02:58]}  a6 {[%clk 0:02:56]} 7. c3 {[%clk 0:02:56]}  b6 {[%clk 0:02:55]} 8. Nbd2 {[%clk 0:02:54]}  Bb7 {[%clk 0:02:54]} 9. Nf1 {[%clk 0:02:50]}  d5 {[%clk 0:02:51]} 10. exd5 {[%clk 0:02:48]}  Nxd5 {[%clk 0:02:51]} 11. Bg5 {[%clk 0:02:45]}  Qc8 {[%clk 0:02:45]} 12. Ng3 {[%clk 0:02:43]}  O-O {[%clk 0:02:45]} 13. Qd2 {[%clk 0:02:39]}  Nd7 {[%clk 0:02:43]} 14. Bh6 {[%clk 0:02:35]}  c5 {[%clk 0:02:41]} 15. Nh5 {[%clk 0:02:17]}  Bh8 {[%clk 0:01:58]} 16. Bxf8 {[%clk 0:02:17]}  Qxf8 {[%clk 0:01:59]} 17. Nf4 {[%clk 0:01:57]}  Nxf4 {[%clk 0:01:51]} 18. Qxf4 {[%clk 0:01:58]}  cxd4 {[%clk 0:01:51]} 19. cxd4 {[%clk 0:01:56]}  Bxf3 {[%clk 0:01:31]} 20. Qxf3 {[%clk 0:01:43]}  Bxd4 {[%clk 0:01:31]} 21. Rad1 {[%clk 0:01:40]}  e5 {[%clk 0:01:22]} 22. Bxf7+ {[%clk 0:01:39]}  Kg7 {[%clk 0:01:20]} 23. Bd5 {[%clk 0:01:36]}  Qxf3 {[%clk 0:01:17]} 24. Bxf3 {[%clk 0:01:35]}  Rf8 {[%clk 0:01:18]} 25. b4 {[%clk 0:01:28]}  g5 {[%clk 0:01:08]} 26. Re2 {[%clk 0:01:26]}  Nf6 {[%clk 0:01:07]} 27. Rc1 {[%clk 0:01:19]}  g4 {[%clk 0:01:04]} 28. Bb7 {[%clk 0:01:16]}  a5 {[%clk 0:01:03]} 29. bxa5 {[%clk 0:01:15]}  bxa5 {[%clk 0:01:04]} 30. g3 {[%clk 0:01:13]}  Kg6 {[%clk 0:01:01]} 31. Kg2 {[%clk 0:01:10]}  Rf7 {[%clk 0:00:55]} 32. Bc8 {[%clk 0:01:05]}  h5 {[%clk 0:00:53]} 33. h3 {[%clk 0:01:04]}  a4 {[%clk 0:00:45]} 34. hxg4 {[%clk 0:01:02]}  hxg4 {[%clk 0:00:46]} 35. Rc6 {[%clk 0:01:01]}  Kg5 {[%clk 0:00:46]} 36. a3 {[%clk 0:00:53]}  Nd5 {[%clk 0:00:36]} 37. Be6 {[%clk 0:00:48]} 1-0


[Site "https://www.chess.com"]

[Event "Titled Tuesday Blitz November 16 2021"]
[White "Antipov, Mikhail Al."]
[Black "Nesterov, Arseniy"]
[WhiteFideId "4107012"]
[BlackFideId "24198455"]
[WhiteElo "2587"]
[BlackElo "2489"]
[Result "1-0"]
[Round "11"]
[TimeControl "180+1"]
[Date "2021.11.16"]
[WhiteClock "0:00:03"]
[BlackClock "0:00:06"]

1. e4 {[%clk 0:03:00]}  e5 {[%clk 0:03:00]} 2. Nf3 {[%clk 0:03:00]}  Nc6 {[%clk 0:03:00]} 3. Bc4 {[%clk 0:03:01]}  Bc5 {[%clk 0:02:59]} 4. d3 {[%clk 0:03:01]}  Nf6 {[%clk 0:03:00]} 5. O-O {[%clk 0:03:02]}  d6 {[%clk 0:03:00]} 6. c3 {[%clk 0:03:02]}  O-O {[%clk 0:03:00]} 7. Re1 {[%clk 0:03:02]}  a5 {[%clk 0:03:01]} 8. h3 {[%clk 0:03:00]}  h6 {[%clk 0:03:00]} 9. Nbd2 {[%clk 0:02:59]}  a4 {[%clk 0:03:00]} 10. Nf1 {[%clk 0:02:54]}  Bd7 {[%clk 0:02:51]} 11. Bb5 {[%clk 0:02:50]}  Ne7 {[%clk 0:02:50]} 12. Bxd7 {[%clk 0:02:50]}  Qxd7 {[%clk 0:02:51]} 13. Ng3 {[%clk 0:02:41]}  Ng6 {[%clk 0:02:48]} 14. d4 {[%clk 0:02:37]}  Bb6 {[%clk 0:02:48]} 15. Be3 {[%clk 0:02:32]}  Qb5 {[%clk 0:02:43]} 16. Qc2 {[%clk 0:02:30]}  Rfe8 {[%clk 0:02:34]} 17. c4 {[%clk 0:02:24]}  Qc6 {[%clk 0:02:20]} 18. d5 {[%clk 0:02:24]}  Qd7 {[%clk 0:02:20]} 19. c5 {[%clk 0:02:13]}  dxc5 {[%clk 0:02:05]} 20. Rac1 {[%clk 0:02:05]}  Nf4 {[%clk 0:01:56]} 21. Kh2 {[%clk 0:01:49]}  Qb5 {[%clk 0:01:34]} 22. Red1 {[%clk 0:01:26]}  c6 {[%clk 0:00:54]} 23. d6 {[%clk 0:01:04]}  Rad8 {[%clk 0:00:40]} 24. Rd2 {[%clk 0:01:02]}  Nd7 {[%clk 0:00:31]} 25. Nf5 {[%clk 0:00:54]}  Ne6 {[%clk 0:00:27]} 26. Qd1 {[%clk 0:00:47]}  Nf6 {[%clk 0:00:21]} 27. Nxe5 {[%clk 0:00:42]}  Nxe4 {[%clk 0:00:22]} 28. Qg4 {[%clk 0:00:34]}  Nxd2 {[%clk 0:00:17]} 29. Nxh6+ {[%clk 0:00:18]}  Kf8 {[%clk 0:00:10]} 30. Qf5 {[%clk 0:00:17]}  Re7 {[%clk 0:00:03]} 31. dxe7+ {[%clk 0:00:03]}  Kxe7 {[%clk 0:00:04]} 32. Qxf7+ {[%clk 0:00:04]}  Kd6 {[%clk 0:00:05]} 33. Qxb7 {[%clk 0:00:02]}  Kxe5 {[%clk 0:00:03]} 34. Nf7+ {[%clk 0:00:02]}  Ke4 {[%clk 0:00:03]} 35. Nxd8 {[%clk 0:00:03]}  Bc7+ {[%clk 0:00:04]} 36. Kh1 {[%clk 0:00:01]}  Qxb7 {[%clk 0:00:04]} 37. Nxb7 {[%clk 0:00:02]}  Kd3 {[%clk 0:00:03]} 38. Nxc5+ {[%clk 0:00:02]}  Nxc5 {[%clk 0:00:03]} 39. Rxc5 {[%clk 0:00:03]}  Nc4 {[%clk 0:00:04]} 40. Rxc6 {[%clk 0:00:03]}  Be5 {[%clk 0:00:04]} 41. b3 {[%clk 0:00:02]}  axb3 {[%clk 0:00:04]} 42. axb3 {[%clk 0:00:03]}  Na5 {[%clk 0:00:05]} 43. Rc5 {[%clk 0:00:03]}  Bc3 {[%clk 0:00:05]} 44. Rb5 {[%clk 0:00:03]}  Nc6 {[%clk 0:00:05]} 45. g4 {[%clk 0:00:04]}  Ne7 {[%clk 0:00:05]} 46. Kg2 {[%clk 0:00:04]}  Nc8 {[%clk 0:00:05]} 47. Rd5+ {[%clk 0:00:03]}  Ke4 {[%clk 0:00:06]} 48. Rc5 {[%clk 0:00:03]} 1-0


[Site "https://www.chess.com"]

[Event "Titled Tuesday Blitz November 16 2021"]
[White "Barbosa, Evandro Amorim"]
[Black "Saydaliev, Saidakbar"]
[WhiteFideId "2115824"]
[BlackFideId "14203693"]
[WhiteElo "2454"]
[BlackElo "2335"]
[Result "1-0"]
[Round "11"]
[TimeControl "180+1"]
[Date "2021.11.16"]
[WhiteClock "0:00:37"]
[BlackClock "0:00:36"]

1. e4 {[%clk 0:03:00]}  e5 {[%clk 0:02:59]} 2. Nf3 {[%clk 0:02:58]}  Nc6 {[%clk 0:03:00]} 3. Bc4 {[%clk 0:02:58]}  Bc5 {[%clk 0:02:59]} 4. d3 {[%clk 0:02:58]}  d6 {[%clk 0:02:59]} 5. c3 {[%clk 0:02:58]}  Qf6 {[%clk 0:02:59]} 6. Be3 {[%clk 0:02:55]}  h6 {[%clk 0:02:58]} 7. Nbd2 {[%clk 0:02:53]}  Nge7 {[%clk 0:02:58]} 8. O-O {[%clk 0:02:52]}  O-O {[%clk 0:02:57]} 9. b4 {[%clk 0:02:52]}  Bb6 {[%clk 0:02:56]} 10. a4 {[%clk 0:02:52]}  a6 {[%clk 0:02:55]} 11. Bxb6 {[%clk 0:02:49]}  cxb6 {[%clk 0:02:56]} 12. Re1 {[%clk 0:02:44]}  Bg4 {[%clk 0:02:55]} 13. h3 {[%clk 0:02:23]}  Bd7 {[%clk 0:02:54]} 14. Nh2 {[%clk 0:02:04]}  Ng6 {[%clk 0:02:53]} 15. Ng4 {[%clk 0:01:46]}  Qd8 {[%clk 0:02:47]} 16. g3 {[%clk 0:01:43]}  Rc8 {[%clk 0:02:44]} 17. h4 {[%clk 0:01:39]}  Kh7 {[%clk 0:02:24]} 18. Ne3 {[%clk 0:01:38]}  Be6 {[%clk 0:02:17]} 19. Qh5 {[%clk 0:01:29]}  Nce7 {[%clk 0:02:14]} 20. Rac1 {[%clk 0:01:10]}  d5 {[%clk 0:02:11]} 21. exd5 {[%clk 0:01:10]}  Nxd5 {[%clk 0:02:12]} 22. Ne4 {[%clk 0:01:01]}  Kg8 {[%clk 0:01:47]} 23. Bxd5 {[%clk 0:00:47]}  Bxd5 {[%clk 0:01:48]} 24. Nf5 {[%clk 0:00:46]}  Bxe4 {[%clk 0:01:12]} 25. dxe4 {[%clk 0:00:44]}  Qf6 {[%clk 0:01:09]} 26. Qg4 {[%clk 0:00:43]}  Rfd8 {[%clk 0:00:59]} 27. Red1 {[%clk 0:00:43]}  Rxd1+ {[%clk 0:00:56]} 28. Rxd1 {[%clk 0:00:44]}  Rxc3 {[%clk 0:00:52]} 29. Rd6 {[%clk 0:00:42]}  Qxd6 {[%clk 0:00:36]} 30. Nxd6 {[%clk 0:00:41]}  Rc1+ {[%clk 0:00:36]} 31. Kg2 {[%clk 0:00:41]}  Rc7 {[%clk 0:00:37]} 32. h5 {[%clk 0:00:39]}  Nf8 {[%clk 0:00:36]} 33. Ne8 {[%clk 0:00:37]} 1-0


[Site "https://www.chess.com"]

[Event "Titled Tuesday Blitz November 16 2021"]
[White "Bortnyk, Olexandr"]
[Black "Rozman, Levy"]
[WhiteFideId "14120828"]
[BlackFideId "2039877"]
[WhiteElo "2723"]
[BlackElo "2376"]
[Result "1-0"]
[Round "11"]
[TimeControl "180+1"]
[Date "2021.11.16"]
[WhiteClock "0:02:05"]
[BlackClock "0:01:23"]

1. e4 {[%clk 0:03:00]}  c6 {[%clk 0:02:58]} 2. d4 {[%clk 0:02:58]}  d5 {[%clk 0:02:59]} 3. Nc3 {[%clk 0:02:59]}  a6 {[%clk 0:02:58]} 4. Bf4 {[%clk 0:02:58]}  dxe4 {[%clk 0:02:54]} 5. Nxe4 {[%clk 0:02:58]}  Nf6 {[%clk 0:02:52]} 6. Nxf6+ {[%clk 0:02:58]}  gxf6 {[%clk 0:02:52]} 7. c3 {[%clk 0:02:56]}  Rg8 {[%clk 0:02:50]} 8. Qh5 {[%clk 0:02:55]}  h6 {[%clk 0:02:42]} 9. Bc4 {[%clk 0:02:54]}  e6 {[%clk 0:02:41]} 10. O-O-O {[%clk 0:02:51]}  b5 {[%clk 0:02:39]} 11. Bb3 {[%clk 0:02:50]}  a5 {[%clk 0:02:37]} 12. Re1 {[%clk 0:02:51]}  Bd6 {[%clk 0:02:26]} 13. Bxh6 {[%clk 0:02:43]}  Rh8 {[%clk 0:02:17]} 14. Bxe6 {[%clk 0:02:41]}  Bxe6 {[%clk 0:01:58]} 15. Rxe6+ {[%clk 0:02:42]}  Be7 {[%clk 0:01:58]} 16. Re3 {[%clk 0:02:26]}  Qd6 {[%clk 0:01:40]} 17. Bf4 {[%clk 0:02:24]}  Qxf4 {[%clk 0:01:33]} 18. Qxh8+ {[%clk 0:02:23]}  Kd7 {[%clk 0:01:33]} 19. Nf3 {[%clk 0:02:14]}  a4 {[%clk 0:01:28]} 20. Re1 {[%clk 0:02:10]}  a3 {[%clk 0:01:28]} 21. b3 {[%clk 0:02:05]}  Ra7 {[%clk 0:01:23]} 22. g3 {[%clk 0:02:05]} 1-0


[Site "https://www.chess.com"]